fUST/lending_fUST_20241012
["ID","MTS","AMOUNT","RATE_DAILY","PERIOD"]
[340154100,1728695229156,-278.54788551,0.00042495,5]
[340154101,1728695242097,-271.45211449,0.00042495,5]
[340154102,1728695242126,-748.06044197,0.00042496,6]
[340154103,1728695245116,-310.0,0.00042496,2]
[340154104,1728695245142,-534.41355836,0.00042496,6]
[340154105,1728695245170,-3560.05293778,0.00042496,6]
[340154146,1728695319792,6000.0,0.0004,2]
[340154154,1728695347108,-550.0,0.00042429,30]
[340154155,1728695347135,-550.0,0.00042429,5]
[340154156,1728695347159,-19435.16682145,0.0004243,120]
[340154158,1728695352088,-8357.00812984,0.0004243,120]
[340154159,1728695352111,-250.0,0.00042506,2]
[340154160,1728695352133,-165.923104,0.00042511,2]
[340154161,1728695352158,-500.0,0.00042515,5]
[340154162,1728695352180,-165.923104,0.0004253,2]
[340154163,1728695352203,-253.162,0.0004253,64]
[340154164,1728695352224,-165.923104,0.00042549,2]
[340154165,1728695352246,-165.923104,0.00042568,2]
[340154166,1728695352268,-165.923104,0.00042588,2]
[340154167,1728695352290,-250.0,0.00042617,2]
[340154168,1728695352312,-250.0,0.00042728,2]
[340154169,1728695352333,-197.0,0.00043,90]
[340154170,1728695352354,-197.0,0.00043014,90]
[340154171,1728695352375,-197.369512,0.00043019,2]
[340154172,1728695352400,-197.369512,0.00044389,2]
[340154173,1728695352421,-400.0,0.00044658,2]
[340154174,1728695352442,-500.0,0.00044733,10]
[340154175,1728695352464,-197.0,0.00044877,90]
[340154176,1728695352484,-185.35221641,0.00045,2]
[340154177,1728695352506,-770.0,0.00045143,5]
[340154178,1728695352527,-500.0,0.000464,10]
[340154179,1728695352548,-500.0,0.000464,7]
[340154180,1728695352568,-500.0,0.000464,10]
[340154181,1728695352588,-770.0,0.00046672,30]
[340154182,1728695352609,-338.61033564,0.00046717,10]
[340154183,1728695352629,-500.0,0.00046717,10]
[340154184,1728695352650,-163.0,0.00047,90]
[340154185,1728695352672,-204.0,0.00047121,90]
[340154186,1728695352693,-500.0,0.00047144,10]
[340154187,1728695352719,-154.05,0.000474,42]
[340154188,1728695352744,-154.05,0.000474,42]
[340154189,1728695352768,-154.05,0.000474,42]
[340154190,1728695352792,-154.05,0.000474,42]
[340154191,1728695352813,-1000.0,0.0004777,7]
[340154192,1728695352835,-1077.0,0.00048031,5]
[340154193,1728695352859,-163.0,0.00048904,90]
[340154194,1728695352882,-27792.17495128,0.0004921,120]
[340154195,1728695352909,-150.0,0.00049315,120]
[340154196,1728695352931,-170.687869,0.00049452,2]
[340154197,1728695352955,-400.0,0.00049517,2]
[340154198,1728695352976,-623.05510469,0.00049551,18]
[340154199,1728695352997,-780.49555478,0.00049773,7]
[340154200,1728695353018,-1688.99,0.000498,90]
[340154201,1728695353043,-515.17,0.00050007,30]
[340154202,1728695353067,-429.31,0.00050007,30]
[340154203,1728695353088,-357.76,0.00050007,30]
[340154204,1728695353111,-4034.48623436,0.00050007,7]
[340154215,1728695372097,-6381.947278,0.00050007,7]
[340154218,1728695409759,1033.33218596,0.00040843,2]
[340154219,1728695419180,8994.80921442,0.00046499,2]
[340154220,1728695419206,15905.19078558,0.00046499,2]
[340154221,1728695423317,154.48,0.000481,45]
[340154222,1728695423376,154.48,0.000481,45]
[340154258,1728695438521,-151.0,0.00040943,14]
[340154260,1728695438531,-150.0,0.00049315,120]
[340154261,1728695438542,-235.71419714,0.00050007,7]
[340154262,1728695438552,-334.60155171,0.00050007,7]
[340154263,1728695438561,-197.0,0.00050262,120]
[340154264,1728695438572,-500.0,0.00050356,10]
[340154265,1728695438582,-700.0,0.00051725,120]
[340154266,1728695438594,-525.0,0.00051725,15]
[340154267,1728695438604,-500.38374145,0.00051726,10]
[340154268,1728695438615,-300.0,0.00052054,120]
[340154269,1728695438625,-154.48,0.000522,51]
[340154270,1728695438637,-154.48,0.000522,51]
[340154271,1728695438648,-154.48,0.000522,51]
[340154272,1728695438659,-154.48,0.000522,51]
[340154273,1728695438670,-197.0,0.00053403,120]
[340154274,1728695438681,-1577.89,0.000538,90]
[340154275,1728695438691,-197.0,0.00053852,120]
[340154276,1728695438704,-153.0,0.00053909,120]
[340154277,1728695438716,-153.0,0.00053909,120]
[340154278,1728695438726,-153.0,0.00053909,120]
[340154279,1728695438737,-673.48669648,0.00053939,2]
[340154280,1728695438747,-862.68,0.0005398,30]
[340154281,1728695438758,-10652.1477095,0.0005399,8]
[340154282,1728695438768,-334.60155171,0.0005399,8]
[340154283,1728695438778,-11662.9007066,0.00054,120]
[340154284,1728695438787,-219.55946858,0.00054,120]
[340154285,1728695438797,-3768.18712839,0.00054276,28]
[340154286,1728695438807,-400.0,0.00054376,2]
[340154287,1728695438818,-450.0,0.00054794,120]
[340154288,1728695438829,-1250.0,0.00054794,120]
[340154289,1728695438840,-308.3117526,0.00054795,120]
[340154290,1728695438854,-153.0,0.00054795,120]
[340154291,1728695438865,-209.9542747,0.00054795,120]
[340154292,1728695438879,-336.92804512,0.00055,110]
[340154293,1728695438893,-172.53,0.00055282,30]
[340154294,1728695438906,-298.13,0.00055292,30]
[340154295,1728695438919,-248.45,0.00055292,30]
[340154296,1728695438932,-207.04,0.00055292,30]
[340154297,1728695438943,-1352.78,0.00055292,10]
[340154298,1728695438955,-1127.32,0.00055292,10]
[340154299,1728695438966,-6160.07474233,0.00055292,8]
[340154300,1728695439497,-15144.22067667,0.00055292,8]
[340154301,1728695439509,-669.20310342,0.00055292,8]
[340154302,1728695439520,-550.0,0.00055301,120]
[340154303,1728695439531,-7143.49556611,0.00055302,120]
[340154304,1728695440023,237.732292,0.00046766,2]
[340154315,1728695440293,237.732292,0.00046895,2]
[340154316,1728695440403,-939.43,0.00055292,10]
[340154317,1728695440413,-81744.50443389,0.00055302,120]
[340154318,1728695440423,-10652.1477095,0.00055392,8]
[340154319,1728695440432,-334.60155171,0.00055392,8]
[340154320,1728695440442,-673.48669648,0.00055427,2]
[340154321,1728695440453,-330.10299888,0.00055989,120]
[340154322,1728695440465,-425.19621275,0.00055989,120]
[340154323,1728695440476,-172.54235915,0.00055989,31]
[340154324,1728695440488,-394.5204025,0.00055989,120]
[340154325,1728695440498,-27792.17495128,0.0005599,120]
[340154326,1728695440509,-1250.0,0.00056164,120]
[340154327,1728695440523,-154.48,0.000564,57]
[340154328,1728695440532,-154.48,0.000564,57]
[340154329,1728695440542,-154.48,0.000564,57]
[340154330,1728695440551,-154.48,0.000564,57]
[340154331,1728695440564,-3768.18712832,0.00056458,28]
[340154332,1728695440575,-197.0,0.00056545,120]
[340154333,1728695440586,-544.0,0.00056719,120]
[340154334,1728695440596,-673.48669648,0.00056915,2]
[340154335,1728695440606,-600.0,0.00057534,120]
[340154336,1728695440618,-150.112234,0.000583,13]
[340154337,1728695440629,-673.48669648,0.00058402,2]
[340154338,1728695440639,-6783.1855542,0.00058609,120]
[340154339,1728695440649,-3768.18712832,0.0005864,28]
[340154340,1728695440660,-6783.1855542,0.00058689,120]
[340154341,1728695440670,-176.04,0.000589,2]
[340154342,1728695440681,-10652.1477095,0.00058902,9]
[340154343,1728695440691,-334.60155171,0.00058902,9]
[340154344,1728695440701,-175.0,0.00059,120]
[340154345,1728695440712,-1000.0,0.00059099,30]
[340154346,1728695440723,-1000.0,0.00059099,30]
[340154347,1728695440733,-1000.0,0.00059101,30]
[340154348,1728695440744,-1000.0,0.00059103,30]
[340154349,1728695440755,-6783.1855542,0.00059106,120]
[340154350,1728695440765,-1000.0,0.00059106,30]
[340154351,1728695440777,-1000.0,0.00059118,30]
[340154352,1728695440788,-1000.0,0.00059123,30]
[340154353,1728695440798,-1000.0,0.00059132,30]
[340154354,1728695440809,-1000.0,0.00059138,30]
[340154355,1728695440819,-1000.0,0.00059143,30]
[340154356,1728695440830,-992.22784329,0.00059152,30]
[340154357,1728695440842,-1000.0,0.00059162,30]
[340154358,1728695440932,-1000.0,0.00059164,30]
[340154359,1728695440969,-1109.46521065,0.00059164,30]
[340154360,1728695440979,-1000.0,0.00059167,30]
[340154361,1728695440990,-1000.0,0.00059169,30]
[340154362,1728695440999,-1000.0,0.00059184,30]
[340154363,1728695441009,-1000.0,0.00059188,30]
[340154364,1728695441019,-1000.0,0.0005919,30]
[340154365,1728695441029,-1000.0,0.00059213,30]
[340154366,1728695441039,-1000.0,0.00059214,30]
[340154367,1728695441049,-1000.0,0.00059228,30]
[340154368,1728695441059,-1000.0,0.00059233,30]
[340154369,1728695441069,-400.0,0.00059236,2]
[340154370,1728695441079,-1000.0,0.00059249,30]
[340154371,1728695441089,-1000.0,0.00059255,30]
[340154372,1728695441099,-6783.1855542,0.00059266,120]
[340154373,1728695441109,-1000.0,0.00059285,30]
[340154374,1728695441122,-1000.0,0.00059296,30]
[340154375,1728695441132,-1000.0,0.00059297,30]
[340154376,1728695441142,-336.28841115,0.000593,2]
[340154377,1728695441151,-1000.0,0.00059304,30]
[340154378,1728695441164,-1000.0,0.00059305,30]
[340154379,1728695441174,-1000.0,0.00059306,30]
[340154380,1728695441185,-1000.0,0.00059326,30]
[340154381,1728695441199,-1000.0,0.00059335,30]
[340154382,1728695441210,-1000.0,0.00059337,30]
[340154383,1728695441220,-1000.0,0.00059352,30]
[340154384,1728695441229,-1000.0,0.00059355,30]
[340154385,1728695441240,-500.0,0.00059358,2]
[340154386,1728695441250,-150.0,0.00059385,120]
[340154387,1728695441260,-253.162,0.00059397,118]
[340154388,1728695441270,-2000.0,0.000594,120]
[340154389,1728695441280,-150.0,0.00059472,120]
[340154390,1728695441290,-150.112233,0.000596,16]
[340154391,1728695441301,-6783.1855542,0.00059683,120]
[340154392,1728695441311,-673.48669648,0.0005989,2]
[340154393,1728695441321,-150.114655,0.000599,2]
[340154394,1728695441330,-461.47296448,0.000599,2]
[340154395,1728695441341,-160.0,0.00059918,3]
[340154396,1728695441351,-160.0,0.00059918,5]
[340154397,1728695441361,-6725.04917677,0.00059935,120]
[340154398,1728695441371,-300.02,0.00059935,120]
[340154399,1728695441381,-31956.4431286,0.0005998,9]
[340154400,1728695441392,-1003.80465513,0.0005998,9]
[340154401,1728695441402,-42608.5908381,0.0005999,9]
[340154402,1728695441412,-1338.40620684,0.0005999,9]
[340154403,1728695441422,-300.0,0.0006,120]
[340154404,1728695441432,-188.00524576,0.0006,12]
[340154405,1728695441442,-179264.90828129,0.0006,120]
[340154406,1728695441452,-6783.1855542,0.00060065,120]
[340154407,1728695441462,-150.39677943,0.00060249,120]
[340154408,1728695441472,-515.71588476,0.00060273,15]
[340154409,1728695441482,-500.0,0.00060273,120]
[340154410,1728695441492,-1916.65,0.00060273,2]
[340154411,1728695441501,-500.0,0.00060273,120]
[340154412,1728695441511,-500.0,0.00060273,120]
[340154413,1728695441522,-27617.31,0.00060273,18]
[340154414,1728695441532,-500.0,0.00060273,120]
[340154415,1728695441542,-500.0,0.00060273,120]
[340154416,1728695441553,-500.0,0.00060273,120]
[340154417,1728695441566,-750.0,0.00060273,120]
[340154418,1728695441576,-31956.4431286,0.00060281,10]
[340154419,1728695441587,-1003.80465513,0.00060281,10]
[340154420,1728695441598,-81444.45516372,0.00060291,2]
[340154421,1728695441609,-38687.76878426,0.00060291,2]
[340154422,1728695441619,-6783.1855542,0.00060367,120]
[340154423,1728695441628,-12976.4399764,0.00060416,2]
[340154424,1728695441798,237.732292,0.00047023,2]
[340154425,1728695441825,237.732292,0.00047151,2]
[340154426,1728695441851,237.732292,0.0004728,2]
[340154427,1728695441878,237.732292,0.00047408,2]
[340154428,1728695441906,237.732292,0.00047536,2]
[340154429,1728695441932,237.732292,0.00047664,2]
[340154430,1728695442130,237.732292,0.00047793,2]
[340154431,1728695442330,2.77872642,0.00047921,2]
[340154440,1728695444243,-234.95356558,0.00047921,2]
[340154441,1728695444254,-237.732292,0.00048049,2]
[340154442,1728695444264,-237.732292,0.00048177,2]
[340154443,1728695444276,-206.54750512,0.00048306,2]
[340154458,1728695446078,152.0,0.00047,90]
[340154461,1728695446332,-31.18478688,0.00048306,2]
[340154462,1728695446342,-237.732292,0.00048434,2]
[340154463,1728695446351,-237.732292,0.00048562,2]
[340154464,1728695446360,-237.732292,0.00048691,2]
[340154465,1728695446369,-237.732292,0.00048819,2]
[340154466,1728695446378,-237.732292,0.00048947,2]
[340154467,1728695446388,-237.732292,0.00049075,2]
[340154468,1728695446464,-237.732292,0.00049204,2]
[340154469,1728695446473,-12165.69719994,0.00060416,2]
[340154470,1728695446484,-268.0,0.00060416,2]
[340154471,1728695446526,-93.82372871,0.00060273,2]
[340154472,1728695446596,-1742.96627129,0.00060273,2]
[340154473,1728695446605,-767.90545721,0.00060416,2]
[340154474,1728695446689,-72.15724567,0.00060416,2]
[340154475,1728695446903,175.874484,0.00043572,2]
[340154477,1728695518039,170.987689,0.00044892,2]
[340154482,1728695593136,172.294931,0.00026986,2]
[340154483,1728695643926,-774.82285638,0.00041021,14]
[340154484,1728695654367,-160.0,0.00044658,2]
[340154489,1728695916435,24840.0,0.00044679,2]
[340154495,1728696008480,466.03193417,0.00038509,2]
[340154496,1728696013394,1021.0,0.00044,2]
[340154506,1728696270138,15686.0893165,0.00043372,2]
[340154507,1728696274934,210.0,0.00044,2]
[340154510,1728696347151,-328.0,0.00044658,2]
[340154511,1728696347179,-60.0,0.00044679,2]
[340154512,1728696347202,-263.811726,0.00044685,2]
[340154513,1728696347224,-190.955657,0.00044722,2]
[340154514,1728696347247,-167.075708,0.00044982,2]
[340154515,1728696347284,-167.075708,0.00045372,2]
[340154516,1728696347315,-167.075708,0.00045763,2]
[340154517,1728696347345,-158.15082827,0.00045881,2]
[340154518,1728696347369,-550.0,0.0004598,30]
[340154519,1728696347397,-333.4792435,0.0004598,2]
[340154520,1728696347423,-550.0,0.0004598,5]
[340154521,1728696347450,-87.16826715,0.00045981,2]
[340154525,1728696417061,1998.63681713,0.00044,2]
[340154528,1728696446791,200.0,0.00044,120]
[340154532,1728696453280,-184.19035226,0.00046053,30]
[340154533,1728696453311,-65.80964774,0.00046053,30]
[340154534,1728696453334,-250.0,0.00046053,5]
[340154535,1728696453358,-98.43813492,0.00046154,2]
[340154537,1728696476159,3472.8199992,0.00036,60]
[340154547,1728696520562,1945.421933,0.00020377,2]
[340154548,1728696520591,16580.57952484,0.00020377,2]
[340154549,1728696524703,8419.42047516,0.0004,10]
[340154550,1728696524729,938.36386,0.0004,10]
[340154551,1728696547038,-8465.85288246,0.00045,120]
[340154552,1728696555185,-1530.93104825,0.00045,120]
[340154553,1728696555206,-13561.21720662,0.00045954,120]
[340154554,1728696555229,-3142.89225945,0.00045954,28]
[340154555,1728696555251,-13824.72506239,0.00046,60]
[340154556,1728696555272,-336.28841115,0.00046054,2]
[340154557,1728696555296,-68.63757308,0.00046154,2]
[340154558,1728696555317,-167.075708,0.00046544,2]
[340154559,1728696557156,-167.075708,0.00046935,2]
[340154560,1728696557177,-152.0,0.00047,90]
[340154561,1728696557200,-24900.0,0.00047045,2]
[340154562,1728696557223,-263.811726,0.00047075,2]
[340154563,1728696557245,-167.075708,0.00047326,2]
[340154564,1728696557266,-151.897,0.000478,81]
[340154565,1728696557288,-200.0,0.00048,120]
[340154566,1728696557313,-154.54,0.000481,45]
[340154567,1728696557337,-590.66512146,0.00049,2]
[340154568,1728696557358,-150.0,0.00049315,120]
[340154569,1728696557380,-3142.8922594,0.00049325,28]
[340154570,1728696557402,-328.0,0.00049517,2]
[340154571,1728696557424,-200.0,0.0005,120]
[340154572,1728696557445,-13561.21720661,0.00051441,120]
[340154573,1728696557467,-219.55946858,0.00051873,120]
[340154574,1728696557489,-1000.0,0.00052,120]
[340154575,1728696557510,-300.0,0.00052054,120]
[340154576,1728696557536,-154.54,0.000522,51]
[340154577,1728696557560,-154.54,0.000522,51]
[340154578,1728696557582,-2508.47199127,0.00052696,28]
[340154580,1728696565092,-634.42026813,0.00052696,28]
[340154581,1728696565115,-600.0,0.000528,2]
[340154583,1728696603160,500.0,0.0005245,2]
[340154584,1728696608516,669.3064,0.00037297,30]
[340154585,1728696629388,161.92,0.000481,45]
[340154586,1728696629438,161.92,0.000522,51]
[340154587,1728696629601,161.92,0.000522,51]
[340154641,1728696632809,-20.46559469,0.00040937,14]
[340154759,1728696639169,-129.53440531,0.00040937,14]
[340154761,1728696639182,-150.0,0.00040937,14]
[340154763,1728696639193,-156.219999,0.00040937,14]
[340154765,1728696639204,-153.0,0.00053836,30]
[340154768,1728696639214,-153.0,0.00053836,30]
[340154770,1728696639226,-153.0,0.00053836,30]
[340154772,1728696639240,-153.0,0.00053836,30]
[340154774,1728696639251,-153.0,0.00053836,30]
[340154777,1728696639265,-209.799474,0.00053973,30]
[340154779,1728696639276,-306.3571712,0.00053973,30]
[340154781,1728696639286,-153.0,0.00053973,30]
[340154783,1728696639295,-153.0,0.00053973,30]
[340154785,1728696639305,-153.0,0.00053973,30]
[340154787,1728696639314,-153.0,0.00053973,30]
[340154789,1728696639323,-153.0,0.00053973,30]
[340154791,1728696639333,-153.0,0.00053973,30]
[340154793,1728696639343,-328.0,0.00054376,2]
[340154796,1728696639352,-373.46377001,0.00054694,2]
[340154798,1728696639362,-450.0,0.00054794,120]
[340154800,1728696639371,-500.0,0.00054794,120]
[340154802,1728696639381,-500.0,0.00054794,120]
[340154804,1728696639391,-500.0,0.00054794,120]
[340154806,1728696639402,-84.82091658,0.00054794,120]
[340154820,1728696639526,-123.99809167,0.00054794,120]
[340154822,1728696639538,-287.38831,0.00054794,120]
[340154830,1728696640943,-3.79268175,0.00054794,120]
[340154831,1728696640954,-500.0,0.00054794,120]
[340154833,1728696640965,-500.0,0.00054794,120]
[340154834,1728696640978,-500.0,0.00054794,120]
[340154835,1728696640989,-158.8,0.00054794,120]
[340154836,1728696641007,-160.0,0.00054916,2]
[340154837,1728696641019,-500.0,0.00055389,15]
[340154838,1728696641028,-373.46376997,0.00056043,2]
[340154839,1728696641039,-3142.8922594,0.00056067,28]
[340154840,1728696641054,-693.33,0.00056141,30]
[340154841,1728696641065,-2139.17424,0.0005615,30]
[340154842,1728696641076,-232.95608328,0.00056151,120]
[340154843,1728696641086,-338.0,0.00056151,2]
[340154844,1728696641096,-32275.72790821,0.00056151,115]
[340154845,1728696641107,-500.0,0.000563,5]
[340154846,1728696641119,-161.92,0.000564,57]
[340154847,1728696641134,-161.92,0.000564,57]
[340154848,1728696641148,-500.67170863,0.00056759,15]
[340154849,1728696641158,-13561.21720661,0.00056927,120]
[340154850,1728696641167,-373.46376997,0.00057393,2]
[340154851,1728696641179,-600.0,0.00057534,120]
[340154852,1728696641190,-500.0,0.00057999,120]
[340154853,1728696641200,-500.0,0.00057999,120]
[340154854,1728696641212,-500.0,0.00057999,120]
[340154855,1728696641223,-500.0,0.00057999,120]
[340154856,1728696641234,-500.0,0.00057999,120]
[340154857,1728696641245,-500.0,0.00057999,120]
[340154858,1728696641256,-500.0,0.00057999,120]
[340154859,1728696641267,-500.0,0.00057999,120]
[340154860,1728696641277,-500.0,0.00057999,120]
[340154861,1728696641286,-500.0,0.00057999,120]
[340154862,1728696641295,-500.0,0.00057999,120]
[340154863,1728696641305,-500.0,0.00057999,120]
[340154864,1728696641315,-500.0,0.00057999,120]
[340154865,1728696641325,-500.0,0.00057999,120]
[340154866,1728696641334,-500.0,0.00057999,120]
[340154867,1728696641344,-500.0,0.00057999,120]
[340154868,1728696641354,-500.0,0.00057999,120]
[340154869,1728696641366,-500.0,0.00057999,120]
[340154870,1728696641376,-500.0,0.00057999,120]
[340154871,1728696641387,-500.0,0.00057999,120]
[340154872,1728696641398,-500.0,0.00057999,120]
[340154873,1728696641410,-405.78564284,0.00057999,120]
[340154874,1728696641421,-218.26500149,0.00057999,120]
[340154875,1728696641433,-500.0,0.00057999,120]
[340154876,1728696641444,-500.0,0.00057999,120]
[340154877,1728696641453,-579.54323959,0.00057999,120]
[340154878,1728696641463,-500.0,0.00057999,120]
[340154879,1728696641474,-500.0,0.00057999,120]
[340154880,1728696641485,-500.0,0.00057999,120]
[340154881,1728696641496,-500.0,0.00057999,120]
[340154882,1728696641505,-5040.80425737,0.00058,120]
[340154883,1728696641516,-373.46376997,0.00058742,2]
[340154884,1728696641526,-840.2,0.0005899,10]
[340154885,1728696641536,-700.17,0.0005899,10]
[340154886,1728696641547,-300.5747885,0.00058999,120]
[340154887,1728696641557,-234.98841504,0.00058999,120]
[340154888,1728696641568,-278.32624731,0.00058999,120]
[340154889,1728696641579,-1000.0,0.00059,120]
[340154890,1728696641590,-200.0,0.00059,120]
[340154891,1728696641601,-175.0,0.00059,120]
[340154892,1728696641611,-179264.90828129,0.00059,120]
[340154893,1728696641621,-328.0,0.00059236,2]
[340154894,1728696641631,-293.58,0.000593,2]
[340154895,1728696641641,-3142.8922594,0.00059437,28]
[340154896,1728696641650,-6812.7314213,0.00059595,2]
[340154897,1728696641660,-309.81949234,0.0005978,120]
[340154898,1728696641670,-6812.7314213,0.00059803,2]
[340154899,1728696641681,-3728.25169834,0.00059835,9]
[340154900,1728696641690,-158.29227249,0.00059835,9]
[340154901,1728696641699,-150.0,0.000599,2]
[340154902,1728696641710,-200.0,0.0005992,81]
[340154903,1728696641720,-150.0,0.00059934,2]
[340154904,1728696641729,-500.0,0.0006,120]
[340154905,1728696641740,-200.0,0.0006,120]
[340154906,1728696641751,-2010.49053444,0.0006,120]
[340154907,1728696641761,-188.00524576,0.0006,12]
[340154908,1728696641772,-1000.0,0.0006,120]
[340154909,1728696641782,-6812.7314213,0.00060016,2]
[340154910,1728696641794,-1000.0,0.0006003,30]
[340154911,1728696641806,-150.0,0.00060041,2]
[340154912,1728696641818,-1016.30727901,0.00060042,30]
[340154913,1728696641829,-1000.0,0.00060044,30]
[340154914,1728696641842,-1000.0,0.00060053,30]
[340154915,1728696641853,-88888.0,0.00060081,120]
[340154916,1728696641865,-373.46376997,0.00060091,2]
[340154917,1728696641875,-1000.0,0.00060107,30]
[340154918,1728696641886,-1000.0,0.00060108,30]
[340154919,1728696641899,-1000.0,0.0006011,30]
[340154920,1728696641910,-1000.0,0.00060124,30]
[340154921,1728696641920,-1000.0,0.00060139,30]
[340154922,1728696641931,-1000.0,0.00060157,30]
[340154923,1728696641942,-7456.50339668,0.00060171,9]
[340154924,1728696641953,-316.58454498,0.00060171,10]
[340154925,1728696641964,-3728.25169834,0.00060171,9]
[340154926,1728696641975,-158.29227249,0.00060171,10]
[340154927,1728696641985,-7456.50339668,0.00060181,9]
[340154928,1728696641995,-316.58454498,0.00060181,10]
[340154929,1728696642006,-3000.0,0.00060181,120]
[340154930,1728696642016,-3000.0,0.00060181,120]
[340154931,1728696642026,-3000.0,0.00060181,120]
[340154932,1728696642036,-1061.898135,0.00060181,120]
[340154933,1728696642046,-1000.0,0.00060182,30]
[340154934,1728696642055,-590.37204869,0.00060191,2]
[340154935,1728696642066,-1000.0,0.00060198,30]
[340154936,1728696642076,-2000.0,0.000602,120]
[340154937,1728696642086,-1000.0,0.00060204,30]
[340154938,1728696642098,-500.0,0.00060218,120]
[340154939,1728696642108,-1000.0,0.00060221,30]
[340154940,1728696642119,-1000.0,0.00060232,30]
[340154941,1728696642130,-1000.0,0.00060233,30]
[340154942,1728696642141,-3728.25169834,0.00060253,10]
[340154943,1728696642152,-158.29227249,0.00060253,10]
[340154944,1728696642163,-3728.25169834,0.00060263,10]
[340154945,1728696642174,-158.29227249,0.00060263,10]
[340154946,1728696642186,-7456.50339668,0.00060271,10]
[340154947,1728696642198,-316.58454498,0.00060271,10]
[340154948,1728696642208,-500.0,0.00060273,120]
[340154949,1728696642220,-500.0,0.00060273,120]
[340154950,1728696642230,-517.735595,0.00060273,120]
[340154951,1728696642242,-500.0,0.00060273,120]
[340154952,1728696642254,-262.4265211,0.00060273,120]
[340154953,1728696642265,-500.0,0.00060273,120]
[340154954,1728696642276,-300.0,0.00060273,120]
[340154955,1728696642287,-546.3,0.00060273,120]
[340154956,1728696642300,-888.0,0.00060273,120]
[340154957,1728696642309,-500.0,0.00060273,120]
[340154958,1728696642319,-500.0,0.00060273,120]
[340154959,1728696642330,-500.0,0.00060273,120]
[340154960,1728696642341,-500.0,0.00060273,120]
[340154961,1728696642352,-500.0,0.00060273,120]
[340154962,1728696642362,-532.80461136,0.00060273,120]
[340154963,1728696642372,-750.0,0.00060273,120]
[340154964,1728696642382,-500.0,0.00060273,120]
[340154965,1728696642393,-587.48,0.00060273,120]
[340154966,1728696642490,-1000.0,0.00060273,120]
[340154967,1728696642503,-500.0,0.00060273,120]
[340154968,1728696642514,-500.0,0.00060273,120]
[340154969,1728696642525,-2495.25,0.00060273,120]
[340154970,1728696642535,-500.0,0.00060273,120]
[340154971,1728696642546,-155.07,0.00060273,30]
[340154972,1728696642556,-28711.59,0.00060273,18]
[340154973,1728696642569,-500.0,0.00060273,120]
[340154974,1728696642579,-500.0,0.00060273,120]
[340154975,1728696642591,-500.0,0.00060273,120]
[340154976,1728696642603,-500.0,0.00060273,120]
[340154977,1728696642613,-500.0,0.00060273,120]
[340154978,1728696642624,-500.0,0.00060273,120]
[340154979,1728696642634,-1840.12,0.00060273,2]
[340154980,1728696642643,-309.83893974,0.00060273,120]
[340154981,1728696642653,-171.98596227,0.00060273,120]
[340154982,1728696642663,-3728.25169834,0.00060281,10]
[340154983,1728696642672,-158.29227249,0.00060281,10]
[340154984,1728696642683,-12976.4399764,0.00060291,2]
[340154985,1728696642700,-104.18349697,0.00060291,2]
[340155005,1728696644174,-335.86587177,0.00060291,2]
[340155006,1728696645799,150.0,0.00049315,120]
[340155007,1728696646066,300.0,0.00052054,120]
[340155017,1728696657378,1710.01479154,0.000528,120]
[340155018,1728696678621,150.61275308,0.0005245,10]
[340155020,1728696690712,10000.0,0.00042,2]